Cogmind - Beta 12 X4 @@@ ROGUE MODE // 2022.12.29 @ 20:42:40 Player: Lunatic Blue Result: Self-destructed Performance ------------- Evolutions (1) 500 Regions Visited (3) 600 Robots Destroyed (34) 170 Value Destroyed (685) 685 Prototype IDs (1) 20 Alien Tech Used (0) 0 Bonus (0) 0 TOTAL SCORE: 1975 Bonus ------- None Cogmind --------- Core Integrity 400/400 Matter 279/300 Energy 250/250 System Corruption 2% Temperature Cool (0) Movement Treading (160) Location -9/Materials Parts ------- > --- POWER (1) -------- Ion Engine > --- PROPULSION (3) --- Light Treads Light Treads Light Treads > --- UTILITY (3) ------ Improved Heat Sink Large Storage Unit Light Armor Plating > --- WEAPON (2) ------- Light Cannon Light Cannon > --- INVENTORY (15) --- Ion Engine Large Storage Unit Machine Analyzer Sensor Array Light Armor Plating Light Armor Plating Light Armor Plating Light Armor Plating Hacking Suite Recalibrator Small Laser Light Cannon Grenade Launcher Datajack Enhanced Flamer Peak State ------------ > --- POWER ------------ Light Nuclear Core > --- PROPULSION ------- Light Treads Light Treads Light Treads > --- UTILITY ---------- Improved Heat Sink Large Storage Unit Light Armor Plating > --- WEAPON ----------- Light Cannon Light Cannon > --- INVENTORY -------- Ion Engine Large Storage Unit Machine Analyzer Sensor Array Light Armor Plating Light Armor Plating Light Armor Plating Light Armor Plating Recalibrator Small Laser Light Cannon Grenade Launcher Enhanced Flamer [Rating: 15] Favorites ----------- Power Ion Engine Engine Ion Engine Power Core Light Nuclear Core Propulsion Light Treads Treads Light Treads Wheel Compact Wheel Flight Unit Improved Flight Unit Utility Large Storage Unit Device Improved Heat Sink Storage Large Storage Unit Protection Light Armor Plating Weapon Light Cannon Ballistic Gun Assault Rifle Ballistic Cannon Light Cannon Launcher Grenade Launcher Build | -11 -10 -10 -9 ------- Run | Scr Mat Min Mat Slots Evolved 2 | . . . 2 Power . | . . . . Propulsion 1 | . . . 1 Utility 1 | . . . 1 Weapon . | . . . . Parts Attached 27 | 6 11 2 8 Power 4 | 1 . 1 2 Engine 2 | 1 . . 1 Core 2 | . . 1 1 Reactor . | . . . . Propulsion 8 | 2 1 1 4 Treads 5 | 1 . 1 3 Leg . | . . . . Wheel 2 | 1 1 . . Hover . | . . . . Flight 1 | . . . 1 Utility 7 | 1 4 . 2 Device 1 | . . . 1 Storage 4 | 1 3 . . Processor . | . . . . Hackware . | . . . . Protection 2 | . 1 . 1 Artifact . | . . . . Weapon 8 | 2 6 . . Energy Gun . | . . . . Energy Cannon . | . . . . Ballistic Gun 4 | 2 2 . . Ballistic Cannon 2 | . 2 . . Launcher 2 | . 2 . . Special Weapon . | . . . . Impact Weapon . | . . . . Slashing Weapon . | . . . . Piercing Weapon . | . . . . Special Melee Weapon . | . . . . Unidentified Prototypes 1 | . . . 1 Parts Lost 4 | . 1 2 1 Power 2 | . . 1 1 Propulsion 2 | . 1 1 . Utility . | . . . . Weapon . | . . . . Highest Loss Streak 2 | . 1 2 1 To Critical Strikes . | . . . . Average Slot Usage (%) 96 | . 94 100 92 Engine 7 | . 14 . 3 Core 5 | . . 14 6 Treads 20 | . 14 27 26 Wheel 7 | . 14 . . Device 1 | . . . 11 Storage 15 | . 17 14 11 Protection 9 | . 6 14 11 Ballistic Gun 11 | . 21 . . Ballistic Cannon 15 | . 6 28 22 Naked Turns . | . . . . Heaviest Build 39 | 14 39 34 35 Greatest Support 60 | 20 16 40 60 Greatest Overweight (x) 2 | 1 2 . . Average Overweight (x) . | . 1 . . Largest Inventory Capacity 15 | 8 15 15 15 Average Capacity 13 | 6 13 15 15 Most Carried 15 | 4 15 15 15 Average Carried 12 | 2 10 14 14 Final Capacity 15 | 8 15 15 15 Final Carried 15 | 4 15 15 15 Class Distribution -------------------- 100% | Mutant Dominant Class ---------------- Mutant | -10/Materials Mutant | -10/Mines Mutant | -9/Materials Resources | -11 -10 -10 -9 ----------- Run | Scr Mat Min Mat Matter Collected 1009 | 260 458 77 214 Remotely . | . . . . Salvage Created 973 | . 608 116 249 Parts 69 | . 49 6 14 Haulers Intercepted 3 | . 2 . 1 Recyclers Shooed 3 | . 3 . . Parts Field Recycled . | . . . . Retrieved Matter . | . . . . Parts Self-Destructed . | . . . . Prevented . | . . . . Kills | -11 -10 -10 -9 ------- Run | Scr Mat Min Mat Combat Hostiles Destroyed 20 | . 12 3 5 Guns 8 | . 8 . . Cannons 8 | . . 3 5 AOE 4 | . 4 . . Classes Destroyed 10 | . 9 . 1 Worker 2 | . 2 . . Tunneler 1 | . 1 . . Hauler 3 | . 2 . 1 Recycler 3 | . 2 . 1 Mechanic 1 | . 1 . . Operator 2 | . 1 . 1 Watcher 2 | . 2 . . Swarmer 6 | . 6 . . Grunt 13 | . 6 3 4 Duelist 1 | . . . 1 Best Kill Streak 5 | . 5 1 4 Combat Bots Only 4 | . 4 1 3 Max Kills in Single Turn 3 | . 3 1 2 Gunslinging . | . . . . Exploded 2 | . 2 . . Melee . | . . . . Uniques/NPCs Destroyed . | . . . . Combat | -11 -10 -10 -9 -------- Run | Scr Mat Min Mat Damage Taken 769 | . 538 79 152 Core 81 | . 81 . . Absorbed by Shields . | . . . . Core Remaining (%) 83 | 100 . 67 . Volleys Fired 83 | . 55 8 20 Largest 2 | . 2 2 2 Hottest 70 | . 70 70 70 Shots Fired 160 | . 104 16 40 Gun 96 | . 96 . . Cannon 58 | . 2 16 40 Launcher 6 | . 6 . . Special . | . . . . Kinetic 154 | . 98 16 40 Thermal . | . . . . Explosive 6 | . 6 . . Electromagnetic . | . . . . Robot Hit Streak 11 | . 7 11 9 Robot Miss Streak 4 | . 4 2 2 Penetration Max . | . . . . Secondary Targets . | . . . . Shots Hit Robots 98 | . 54 13 31 Core Hits 50 | . 36 5 9 Critical Kills . | . . . . Critical Parts Destroyed . | . . . . Critical Strikes 2 | . . 2 . Blast 2 | . . 2 . Melee Attacks . | . . . . Impact . | . . . . Slashing . | . . . . Piercing . | . . . . Sneak Attacks . | . . . . Combat Hostiles . | . . . . Follow-up Attacks . | . . . . Damage Inflicted 1848 | . 1059 229 560 Guns 675 | . 675 . . Cannons 809 | . 20 229 560 Explosions 364 | . 364 . . Melee . | . . . . Ramming . | . . . . Kinetic 1484 | . 695 229 560 Thermal . | . . . . Explosive 364 | . 364 . . Electromagnetic . | . . . . Impact . | . . . . Slashing . | . . . . Piercing . | . . . . Highest Corruption 2 | . . . 2 Average Corruption 2 | . . . 2 Corruption Purged . | . . . . Corruption Blocked . | . . . . Overload Shots . | . . . . Overflow Damage 8 | . 4 . 4 Projectiles 4 | . . . 4 Explosions 4 | . 4 . . Melee . | . . . . Knockbacks 9 | . . 3 6 Impact . | . . . . Kinetic 8 | . . 3 5 Secondary 1 | . . . 1 Self-Inflicted Damage 19 | . 19 . . Shots 1 | . 1 . . Rammed . | . . . . Targets Rammed . | . . . . Kicked . | . . . . Crushed . | . . . . Highest Temperature 124 | . 18 124 . Average Temperature 36 | . 3 52 . Received Heat Transfer 231 | . 177 42 12 Siege Activations . | . . . . Robots Corrupted . | . . . . Combat Hostiles . | . . . . Parts Fried . | . . . . Impact Corruptions . | . . . . Robots Melted . | . . . . Combat Hostiles . | . . . . Parts Melted . | . . . . Heat Transferred . | . . . . Parts Sabotaged . | . . . . Parts Stolen . | . . . . Parts Stripped . | . . . . Power Chain Reactions . | . . . . Missiles Intercepted . | . . . . Alert | -11 -10 -10 -9 ------- Run | Scr Mat Min Mat Peak Influence 321 | . 321 50 220 Initial 19 | . . 2 19 Average 83 | . 120 22 115 Maximum Alert Level 1 | . 1 . 1 Low Security (%) 83 | 100 75 100 70 Level 1 16 | . 24 . 29 Level 2 . | . . . . Level 3 . | . . . . Level 4 . | . . . . Level 5 . | . . . . High Security . | . . . . Max Security . | . . . . Squads Dispatched 4 | . 3 . 1 Investigation 2 | . 2 . . Extermination . | . . . . Reinforcement 2 | . 1 . 1 Assault . | . . . . Garrison . | . . . . Intercept . | . . . . Searches Triggered . | . . . . Construction Impeded . | . . . . Haulers Reinforced . | . . . . Active Scanning Responses . | . . . . Cargo Convoy Interrupts . | . . . . Stealth | -11 -10 -10 -9 --------- Run | Scr Mat Min Mat Distress Signals 1 | . 1 . . Communications Jammed . | . . . . Distress Signals . | . . . . Times Spotted 35 | . 24 3 8 Peak Tracking Total 4 | . 4 2 3 Tactical Retreats 1 | . . . 1 Traps | -11 -10 -10 -9 ------- Run | Scr Mat Min Mat Traps Triggered . | . . . . Indirectly . | . . . . Trap Hack Attempts . | . . . . Triggered . | . . . . Disarmed . | . . . . Reprogrammed . | . . . . Reused . | . . . . Traps Extracted . | . . . . Installed . | . . . . Triggered . | . . . . Machines | -11 -10 -10 -9 ---------- Run | Scr Mat Min Mat Machines Disabled 1 | . 1 . . Max in Single Turn 1 | . 1 . . Machines Sabotaged . | . . . . Overloaded Fab Kills . | . . . . Hacking | -11 -10 -10 -9 --------- Run | Scr Mat Min Mat Machines Accessed 11 | . 9 . 2 Terminals 9 | . 7 . 2 Fabricators . | . . . . Repair Stations . | . . . . Recycling Units 2 | . 2 . . Scanalyzers . | . . . . Garrison Access . | . . . . Total Hacks 24 | . 18 . 6 Successful 11 | . 9 . 2 Failed 12 | . 8 . 4 Catastrophic 5 | . 3 . 2 Database Lockouts 1 | . 1 . . Manual 11 | . 7 . 4 Terminals 22 | . 16 . 6 Fabricators . | . . . . Repair Stations . | . . . . Recycling Units 2 | . 2 . . Scanalyzers . | . . . . Garrison Access . | . . . . Terminal Hacks 8 | . 7 . 1 Robot Analysis 1 | . 1 . . Alert Level 1 | . 1 . . Unreport Threat 3 | . 3 . . Locate Traps 3 | . 2 . 1 Fabricator Hacks . | . . . . Repair Station Hacks . | . . . . Recycling Unit Hacks . | . . . . Scanalyzer . | . . . . Garrison Access Hacks . | . . . . Unauthorized Hacks 3 | . 2 . 1 Terminals 1 | . . . 1 Botnet 1 | . . . 1 Fabricators . | . . . . Repair Stations . | . . . . Recycling Units 2 | . 2 . . Tunnel 2 | . 2 . . Scanalyzers . | . . . . Garrison Access . | . . . . Data Cores Recovered . | . . . . Used . | . . . . Hacking Detections 9 | . 7 . 2 Full Trace Events 1 | . . . 1 Feedback Events . | . . . . Feedback Blocked . | . . . . Robot Schematics Acquired . | . . . . Robots Built . | . . . . Authchips . | . . . . Time . | . . . . Total Robot Build Rating . | . . . . Part Schematics Acquired . | . . . . Parts Built . | . . . . Authchips . | . . . . Time . | . . . . Total Part Build Rating . | . . . . Parts Repaired . | . . . . Time . | . . . . Parts Recycled . | . . . . Recycled Matter . | . . . . Retrieved Matter . | . . . . Retrieved Components . | . . . . Parts Scanalyzed . | . . . . Part Schematics Acquired . | . . . . Parts Damaged . | . . . . Bothacking | -11 -10 -10 -9 ------------ Run | Scr Mat Min Mat Used RIF Installer . | . . . . Robots Hacked . | . . . . Non-combat . | . . . . Combat . | . . . . Robot Hacks Applied . | . . . . Relay Couplers Released . | . . . . Fabnet Peak Effective % . | . . . . Robots Rewired . | . . . . Allies Hacked . | . . . . Hacks Repelled . | . . . . Allies | -11 -10 -10 -9 -------- Run | Scr Mat Min Mat Total Allies 1 | . . 1 . Largest Group 1 | . . 1 . Highest-Rated Group 31 | . . 31 . Highest-Rated Ally 31 | . . 31 . Total Orders . | . . . . Ally Attacks . | . . . . Total Damage . | . . . . Kills . | . . . . Allies Corrupted . | . . . . Allies Melted . | . . . . Intel | -11 -10 -10 -9 ------- Run | Scr Mat Min Mat Robot Analysis Total 1 | . 1 . . Derelict Logs Recovered 1 | . . 1 . Drone Launches . | . . . . Drone Recoveries . | . . . . Exploration | -11 -10 -10 -9 ------------- Run | Scr Mat Min Mat Turns Passed 1607 | 55 826 533 193 Spaces Moved 928 | 42 499 315 72 Core 5 | 5 . . . Treads 390 | 3 . 315 72 Legs . | . . . . Wheels 533 | 34 499 . . Hover . | . . . . Flight . | . . . . Fastest Speed 50 | 50 100 160 160 Average Speed 135 | 100 119 160 160 Slowest Speed 160 | 160 130 160 160 Overloaded Moves . | . . . . Propulsion Burnouts . | . . . . Robots Hopped . | . . . . Cave-ins Triggered . | . . . . Exploration Rate (%) 43 | 3 94 67 11 Regions Visited 3 Branch Regions 1 Pre-discovered Areas 3 | . 2 1 . Known Exits Taken . | . . . . Unknown Exits Taken 3 | 1 1 1 . Scrap Searched 1 | . . 1 . Spaces Dug . | . . . . Terrain Destroyed 30 | . 30 . . Melee . | . . . . Projectile . | . . . . AOE 30 | . 30 . . Terrain Rammed . | . . . . Walls Destroyed . | . . . . Machines Disabled . | . . . . Actions | -11 -10 -10 -9 --------- Run | Scr Mat Min Mat Total 1111 | 51 624 329 107 Wait 39 | . 34 1 4 Move 925 | 41 498 314 72 Hop . | . . . . Pick Up 26 | 4 17 3 2 Fast Attach 16 | 6 4 . 6 Attach 7 | . 3 2 2 Detach . | . . . . Swap 4 | . 4 . . Drop 11 | . 9 1 1 Fire 83 | . 55 8 20 Melee . | . . . . Ram . | . . . . Kick . | . . . . Crush . | . . . . Escape Stasis . | . . . . Rewire . | . . . . Trap . | . . . . Miscellaneous . | . . . . Route ------- -11/Scrapyard -10/Materials (discovered 3 exits: *Mat x2 / [*Min]) -10/Mines (discovered 2 exits: *Mat x2) -9/Materials History --------- Turn | Location | Event 20 | -11/Scrapyard | Discovered new exit (range 16) 56 | -11/Scrapyard | Entered Materials 158 | -10/Materials | Discovered new exit (range 7) 317 | -10/Materials | Build established: Mutant 515 | -10/Materials | Discovered new exit (range 15) 640 | -10/Materials | Discovered new exit (range 8) 727 | -10/Materials | Central database locked down 882 | -10/Materials | Entered Mines 976 | -10/Mines | A weapon hastily lodged in a ceiling crevice suddenly fell to the ground 1000 | -10/Mines | Received a Mining Laser from a helpful Derelict 1019 | -10/Mines | Learned location of Storage (-9) 1152 | -10/Mines | Discovered new exit (range 9) 1393 | -10/Mines | Found a hidden stash of uninstalled traps 1401 | -10/Mines | Discovered new exit (range 10) 1415 | -10/Mines | Entered Materials 1415 | -9/Materials | Evolved 2 slots: Propulsion x1, Utility x1 1608 | -9/Materials | Self-destructed Last Messages --------------- 01592_ Current location identified: Materials >>Traps(Locate) Found 6 traps in 1 array: 6x Alarm Trap Map updated. 01592_ Acquired 1 matter. 01597_ K-01 Serf collects debris. 01597_ Acquired Lgt. Treads. 01599_ Acquired 47 matter. 01599_ K-01 Serf collects debris. 01602_ K-01 Serf cleans the Material Compactor. 01604_ R-06 Scavenger collects Tractor Beam. 01606_ K-01 Serf collects debris. 01607_ R-06 Scavenger collects Transport Network Coupler. 01608_ Connecting with Terminal... >>Trojan(Botnet) Trojan loaded successfully. Testing... Terminal linked with 0 systems. Awaiting botnet instructions. Map ----- +----------------------------------------------------+ | ?????????????????????????????????????????????????? | | ?????????????????????????????????????????????????? | | ?????????????????????????????????????????????????? | | ?????????????????????????????????????????????????? | | ?????????????????????????????????????????????????? | | ?????????????????????????????????????????????????? | | ?????????????????????????????????????????????????? | | ?????????????????????????????????????????????????? | | ?????????????????????????????????????????????????? | | ?????????????????????????????????????????????????? | | ?????????????????????????????????????????????????? | | ?????????????????????????????????????????????????? | | ?????????????????????????????????????????????????? | | ?????????????????????????????????????????????????? | | ?????????????????????????????????????????????????? | | ?????????????????????????????????????????????????? | | ?????????????????????????????????????????????????? | | ?????????????????????????????????????????????????? | | ?????????????????????????????????????????????????? | | ?????????????????????????????????????????????????? | | ?????????????????"???????????????????????????????? | | ?????????????+ """??????????????????????????????? | | ?????????????# """ ?????????????????????????????? | | ?????????????# ??#####?????????????????????? | | ?????????????# ###"T"############??????????? | | ?????????????# @ %!! ^ #??????????? | | ?????????????# ^ ^ !! #??????????? | | ?????????????+ """ !^! #??????????? | | ????????????????""""" ! ^ ^ +?????????? | | ????????????????""""" [= #?????????? | | ????????????????""""" kr % #????????# | | ?????????????# """ = ########## | | ?????????????# % % | | ?????????????# % | | ?????????????# %%%% = | | ?????????????# ### ####"""T"""#############+#### | | ?????????????# ??#+???#########?????# % #?? | | ?????????????? ???????????????????????# """ #?? | | ??????????????????????????????????????#[ """%#?? | | ??????????????????????????????????????# """%### | | ??????????????????????????????????????# %+ | | ??????????????????????????????????????#| """ ### | | ??????????????????????????????????????# """ #?? | | ??????????????????????????????????????# """ #?? | | ??????????????????????????????????????# #?? | | ??????????????????????????????????????##########?? | | ?????????????????????????????????????????????????? | | ?????????????????????????????????????????????????? | | ?????????????????????????????????????????????????? | | ?????????????????????????????????????????????????? | +----------------------------------------------------+ Best States ------------- Heat Dissipation 42 Energy Generation 14 Energy Capacity 250 Matter Stores 300 Matter Capacity 300 Sight Range 16 Terrain Scan Density 10 Armor Coverage 150 Evasion (%) 40 Recoil Reduction 3 Item Schematics ----------------- None Robot Schematics ------------------ None Fabricated ------------ Nothing Alien Tech Used ----------------- None Achievements -------------- None Challenges ------------ None Game ------ Seed SupercompositeCargoClaymores Manual? 0 Play Time 00:13:23 Cumulative 173.9 hours Start 2022.12.29 @ 20:31:02 End 2022.12.29 @ 20:42:40 Sessions 1 Manual Loads 0 Difficulty Rogue Special Mode None Game No. 256 Rogue 256 Adventurer 0 Explorer 0 Win Type - Total 4 Types 1/0/3/0/0/0/0/0/0 Lore% 70 Gallery% 79 Achievement% 60 Wizard Run 0 Options --------- ASCII 0 Keyboard 0 Movement Mouse Keybinds 0 Fullscreen 1 Font 18/SmallcapsGlow Map View 76x50 Tactical HUD 1 Map Filters NONE Filters NONE Steam 1 RUN: d92bebb7-87e3-4576-9c52-4d0042859712